fUST/lending_fUST_20250616
["ID","MTS","AMOUNT","RATE_DAILY","PERIOD"]
[366048679,1750032634262,-1000.0,0.00024658,2]
[366048681,1750032634273,-1000.0,0.00024658,2]
[366048683,1750032634283,-1000.0,0.00024658,2]
[366048685,1750032634294,-1000.0,0.00024658,2]
[366048687,1750032634304,-1000.0,0.00024658,2]
[366048689,1750032634316,-1000.0,0.00024658,2]
[366048691,1750032634326,-337.40206444,0.00024658,2]
[366048693,1750032634337,-695.96,0.00024698,4]
[366048695,1750032634347,-2601.51935748,0.00024794,2]
[366048697,1750032634358,-500.0,0.00024795,2]
[366048699,1750032634369,-198.0,0.00024795,2]
[366048701,1750032634380,-695.96,0.00024798,5]
[366048703,1750032634391,-641.0,0.000248,2]
[366048705,1750032634401,-10483.13349801,0.000248,2]
[366048707,1750032634416,-334.5,0.000248,7]
[366048710,1750032634426,-2000.0,0.000248,2]
[366048712,1750032634436,-2000.0,0.000248,2]
[366048714,1750032634446,-151.0,0.000248,6]
[366048716,1750032634455,-3026.44,0.000248,30]
[366048718,1750032634465,-150.0,0.000248,5]
[366048720,1750032634475,-1021.4,0.000248,2]
[366048722,1750032634484,-151.000001,0.000248,7]
[366048724,1750032634495,-332.476445,0.000248,7]
[366048726,1750032634504,-332.476445,0.000248,7]
[366048728,1750032634515,-151.0,0.000248,7]
[366048730,1750032634524,-35837.8251567,0.000248,2]
[366048732,1750032634534,-151.0,0.000248,7]
[366048734,1750032634544,-2601.51935748,0.00024818,2]
[366048736,1750032634554,-500.0,0.00024822,2]
[366048738,1750032634565,-151.0,0.00024829,7]
[366048740,1750032634575,-151.0,0.00024839,7]
[366048742,1750032634585,-151.0,0.00024841,7]
[366048744,1750032634594,-1487.83769631,0.00024841,2]
[366048746,1750032634604,-2601.51935748,0.00024841,2]
[366048748,1750032634614,-500.0,0.0002485,2]
[366048750,1750032634624,-620.07736733,0.00024873,120]
[366048751,1750032634635,-500.0,0.00024877,2]
[366048752,1750032634644,-151.0,0.00024885,7]
[366048753,1750032634654,-151.0,0.0002489,7]
[366048754,1750032634662,-151.0,0.0002489,7]
[366048755,1750032634671,-151.0,0.0002489,7]
[366048756,1750032634681,-151.0,0.0002489,7]
[366048757,1750032634691,-62416.94539705,0.0002489,2]
[366049084,1750032638516,-160.66405686,0.000218,2]
[366049086,1750032638526,-427.6,0.000248,31]
[366049088,1750032638536,-427.6,0.000248,31]
[366049090,1750032638545,-427.6,0.000248,31]
[366049092,1750032638555,-427.6,0.000248,31]
[366049094,1750032638565,-427.6,0.000248,31]
[366049095,1750032638576,-427.6,0.000248,31]
[366049098,1750032638586,-427.6,0.000248,31]
[366049100,1750032638595,-427.6,0.000248,31]
[366049101,1750032638604,-427.6,0.000248,31]
[366049103,1750032638614,-427.6,0.000248,31]
[366049105,1750032638624,-427.6,0.000248,31]
[366049107,1750032638634,-427.6,0.000248,31]
[366049109,1750032638643,-427.6,0.000248,31]
[366049111,1750032638653,-427.6,0.000248,31]
[366049113,1750032638663,-155.23989825,0.00024841,2]
[366049115,1750032638672,-13955.51105684,0.0002489,2]
[366049117,1750032638685,-85499.20656429,0.0002489,2]
[366049174,1750032639535,999.0,0.00019,2]
[366049534,1750032646299,-460.0,0.00021917,4]
[366049535,1750032646309,-2431.904,0.00024746,2]
[366049536,1750032646319,-159.21,0.0002488,10]
[366049537,1750032646330,-17602.74608625,0.0002489,2]
[366051424,1750033474707,162.782487,0.00013699,2]
[366051432,1750033641092,-236.51830361,0.00019946,2]
[366051433,1750033641120,-161.18857399,0.00020147,2]
[366051434,1750033641147,-162.465,0.00020451,2]
[366051435,1750033641171,-152.52257788,0.00021107,2]
[366051436,1750033641195,-3489.51351046,0.00021196,2]
[366051437,1750033645069,-976.00827093,0.00021196,2]
[366051444,1750033771259,-396.45478137,0.0002,2]
[366051445,1750033771285,-394.523404,0.00020205,2]
[366051446,1750033771308,-1239.07822713,0.00021196,2]
[366051447,1750033771333,-300.0,0.00021203,2]
[366051448,1750033771361,-500.0,0.00021204,2]
[366051449,1750033771530,-467.31772634,0.00021204,2]
[366051450,1750033771558,-500.0,0.00021204,2]
[366051451,1750033771588,-500.0,0.00021204,2]
[366051452,1750033771612,-500.0,0.00021204,2]
[366051453,1750033771637,-500.0,0.00021204,2]
[366051454,1750033771659,-500.0,0.00021204,2]
[366051455,1750033771682,-516.21225328,0.00021204,2]
[366051456,1750033771705,-412.9794404,0.00021204,2]
[366051457,1750033771727,-500.0,0.00021204,2]
[366051458,1750033771749,-500.0,0.00021204,2]
[366051459,1750033771773,-500.0,0.00021204,2]
[366051460,1750033771795,-500.0,0.00021204,2]
[366051461,1750033771823,-500.0,0.00021204,2]
[366051462,1750033771845,-500.0,0.00021204,2]
[366051463,1750033771875,-500.0,0.00021204,2]
[366051464,1750033771899,-500.0,0.00021204,2]
[366051465,1750033771923,-561.59100522,0.00021204,2]
[366051466,1750033771945,-500.0,0.00021204,2]
[366051467,1750033771968,-500.0,0.00021204,2]
[366051468,1750033771991,-647.57623302,0.00021204,2]
[366051469,1750033772013,-500.0,0.00021204,2]
[366051470,1750033772035,-500.0,0.00021204,2]
[366051471,1750033772057,-500.0,0.00021204,2]
[366051472,1750033772082,-500.0,0.00021204,2]
[366051473,1750033772104,-500.0,0.00021204,2]
[366051474,1750033772128,-499.99999999,0.00021204,2]
[366051475,1750033772153,-3368.05458148,0.00021205,2]
[366051476,1750033789154,150.0,0.00019105,2]
[366051502,1750033832162,-193.42628878,0.00020569,2]
[366051503,1750033832172,-300.0,0.00021204,2]
[366051505,1750033832183,-300.0,0.00021205,2]
[366051507,1750033832192,-835.55256958,0.00021206,2]
[366051508,1750033832203,-160.0,0.00021206,2]
[366051510,1750033832212,-160.0,0.00021206,2]
[366051512,1750033832222,-213.32089821,0.00021206,2]
[366051514,1750033832231,-160.0,0.00021207,2]
[366051515,1750033832240,-229.86375354,0.00021207,2]
[366051517,1750033832250,-4060.83674309,0.0002137,2]
[366051519,1750033832260,-20584.12626127,0.0002137,2]
[366051521,1750033832269,-501.63539255,0.00021633,2]
[366051522,1750033832283,-168.0,0.00021639,2]
[366051524,1750033832293,-168.0,0.00021816,2]
[366051526,1750033832302,-500.0,0.00021916,2]
[366051527,1750033832312,-577.12240844,0.00021916,2]
[366051528,1750033832322,-500.0,0.00021916,2]
[366051530,1750033832331,-500.0,0.00021916,2]
[366051542,1750033832478,-460.0,0.00021917,4]
[366051543,1750033832489,-181.41400801,0.00021917,4]
[366051544,1750033832499,-470.06,0.00021917,4]
[366051545,1750033832509,-506.84,0.00021917,4]
[366051546,1750033832519,-1108.18,0.00021917,4]
[366051547,1750033832528,-460.0,0.00021917,4]
[366051548,1750033832539,-460.0,0.00021917,4]
[366051549,1750033832548,-460.0,0.00021917,4]
[366051550,1750033832557,-310.71500004,0.00021917,4]
[366051551,1750033832567,-201.87814752,0.00021917,4]
[366051552,1750033832577,-460.0,0.00021917,4]
[366051553,1750033832587,-460.0,0.00021917,4]
[366051554,1750033832596,-460.0,0.00021917,4]
[366051555,1750033832606,-460.0,0.00021917,4]
[366051556,1750033832618,-460.0,0.00021917,4]
[366051557,1750033832627,-460.0,0.00021917,4]
[366051558,1750033832637,-554.15652494,0.00021917,4]
[366051559,1750033832646,-460.0,0.00021917,4]
[366051560,1750033832656,-460.0,0.00021917,4]
[366051561,1750033832666,-460.0,0.00021917,4]
[366051562,1750033832675,-460.0,0.00021917,4]
[366051563,1750033832685,-460.0,0.00021917,4]
[366051564,1750033832695,-460.0,0.00021917,4]
[366051565,1750033832704,-151.0,0.00022,2]
[366051566,1750033832714,-168.0,0.00022138,2]
[366051567,1750033832723,-1108.18,0.00022191,4]
[366051568,1750033832734,-460.0,0.00022191,4]
[366051569,1750033832743,-269.06,0.00022191,4]
[366051570,1750033832753,-460.0,0.00022191,4]
[366051571,1750033832762,-233.27,0.00022191,4]
[366051572,1750033832770,-630.2124192,0.00022205,2]
[366051573,1750033832780,-998.07,0.00022385,2]
[366051574,1750033832789,-1108.18,0.00022465,4]
[366051575,1750033832799,-460.0,0.00022465,4]
[366051576,1750033832811,-516.01326738,0.00022465,4]
[366051577,1750033832821,-168.0,0.00022473,2]
[366051578,1750033832832,-168.0,0.00022515,2]
[366051579,1750033832841,-1108.18,0.00022739,4]
[366051580,1750033832851,-460.0,0.00022739,4]
[366051581,1750033832861,-1108.18,0.00023013,4]
[366051582,1750033832872,-438.54,0.00023013,4]
[366051583,1750033832882,-420.0,0.0002306,2]
[366051584,1750033832891,-420.0,0.00023061,2]
[366051585,1750033832901,-5000.0,0.00023233,2]
[366051586,1750033832911,-207.4,0.00023233,2]
[366051587,1750033832921,-1108.18,0.00023287,4]
[366051588,1750033832930,-445.56787627,0.00023477,2]
[366051589,1750033832941,-1108.18,0.00023561,4]
[366051590,1750033832951,-893.49,0.000236,2]
[366051591,1750033832961,-168.0,0.00023623,2]
[366051592,1750033832972,-500.0,0.00023773,2]
[366051593,1750033832981,-3964.69621,0.0002378,2]
[366051594,1750033832991,-5000.0,0.00023781,2]
[366051595,1750033833001,-796.07,0.0002379,10]
[366051596,1750033833011,-17467.19928419,0.000238,2]
[366051597,1750033833041,-6362.73407012,0.000238,2]
[366051598,1750033833055,-4081.98684994,0.000238,2]
[366051599,1750033833065,-38031.03778466,0.000238,3]
[366051600,1750033833077,-46662.47709859,0.000238,3]
[366051609,1750033840340,-424.47602138,0.00021206,2]
[366051610,1750033840350,-617.95455614,0.00021369,2]
[366051611,1750033840359,-238.61958145,0.00021369,2]
[366051612,1750033840370,-500.0,0.00021918,2]
[366051613,1750033840381,-55714.74311755,0.000238,3]
[366051643,1750034717160,162.782487,0.00013699,2]
[366051644,1750034844135,-774.78016163,0.00019643,2]
[366051645,1750034852148,-279.0,0.00019643,2]
[366051646,1750034900815,221.47,0.00019,2]
[366051652,1750034952266,-5000.0,0.00019447,2]
[366051664,1750034994483,150.0,0.000189,2]
[366051690,1750035032473,-3232.95821625,0.00020243,2]
[366051691,1750035032483,-316.5437607,0.00020447,2]
[366051692,1750035032493,-300.9579837,0.0002085,3]
[366051693,1750035032503,-630.7706286,0.0002095,2]
[366051694,1750035032512,-1004.47,0.00021632,2]
[366051695,1750035032522,-424.47602138,0.00021686,2]
[366051696,1750035032531,-213.32089821,0.00021687,2]
[366051697,1750035032542,-845.25843836,0.00021687,2]
[366051698,1750035032552,-480.0,0.00021687,2]
[366051699,1750035032563,-300.0,0.00021689,2]
[366051700,1750035032572,-300.0,0.00021915,2]
[366051701,1750035032582,-414.92959561,0.00021916,2]
[366051702,1750035032682,-85.07040439,0.00021916,2]
[366051703,1750035032692,-265.13286827,0.00021916,2]
[366051704,1750035032702,-500.0,0.00021916,2]
[366051705,1750035032711,-464.46151642,0.00021916,2]
[366051706,1750035032722,-500.0,0.00021916,2]
[366051707,1750035032732,-500.0,0.00021916,2]
[366051708,1750035032742,-500.0,0.00021916,2]
[366051709,1750035032753,-500.0,0.00021916,2]
[366051710,1750035032762,-162.465,0.00021916,2]
[366051712,1750035032772,-232.297125,0.00021917,4]
[366051713,1750035032781,-460.0,0.00021917,4]
[366051715,1750035032791,-400.0,0.00021917,4]
[366051716,1750035032802,-563.30582452,0.00021917,4]
[366051717,1750035032811,-460.0,0.00021917,4]
[366051718,1750035032821,-1000.0,0.00021917,4]
[366051719,1750035032831,-460.0,0.00021917,4]
[366051720,1750035032840,-460.0,0.00021917,4]
[366051721,1750035032850,-301.43630465,0.00021917,4]
[366051722,1750035032859,-460.0,0.00021917,4]
[366051723,1750035032869,-460.0,0.00021917,4]
[366051724,1750035032878,-460.0,0.00021917,2]
[366051725,1750035032887,-460.0,0.00021917,4]
[366051726,1750035032896,-460.0,0.00021917,4]
[366051727,1750035032906,-440.74012256,0.00021917,4]
[366051728,1750035032915,-460.0,0.00021917,4]
[366051729,1750035032925,-460.0,0.00021917,4]
[366051730,1750035032934,-460.0,0.00021917,4]
[366051731,1750035032944,-460.0,0.00021917,4]
[366051732,1750035032953,-460.0,0.00021917,4]
[366051733,1750035032966,-460.0,0.00021917,4]
[366051734,1750035032976,-460.0,0.00021917,4]
[366051735,1750035032986,-460.0,0.00021917,4]
[366051736,1750035032996,-460.0,0.00021917,4]
[366051737,1750035033006,-460.0,0.00021917,4]
[366051738,1750035033016,-306.99738833,0.00021917,4]
[366051739,1750035033026,-460.0,0.00021917,4]
[366051740,1750035033036,-257.8,0.00021917,4]
[366051741,1750035033046,-784.96,0.00021917,4]
[366051742,1750035033055,-460.0,0.00021917,4]
[366051743,1750035033065,-460.0,0.00021917,4]
[366051744,1750035033075,-460.0,0.00021917,4]
[366051745,1750035033085,-460.0,0.00021917,4]
[366051746,1750035033094,-460.0,0.00021917,4]
[366051747,1750035033106,-400.0,0.00021917,4]
[366051748,1750035033116,-460.0,0.00021917,4]
[366051749,1750035033128,-460.0,0.00021917,4]
[366051750,1750035033139,-460.0,0.00021917,4]
[366051751,1750035033148,-460.0,0.00021917,4]
[366051752,1750035033158,-460.0,0.00021917,4]
[366051753,1750035033167,-322.11756725,0.00021917,4]
[366051754,1750035033178,-460.0,0.00021917,4]
[366051755,1750035033187,-460.0,0.00021917,4]
[366051756,1750035033201,-460.0,0.00021917,4]
[366051757,1750035033210,-460.0,0.00021917,4]
[366051758,1750035033220,-460.0,0.00021917,4]
[366051759,1750035033230,-460.0,0.00021917,4]
[366051760,1750035033240,-460.0,0.00021917,4]
[366051761,1750035033250,-460.0,0.00021917,4]
[366051762,1750035033259,-460.0,0.00021917,4]
[366051763,1750035033269,-460.0,0.00021917,4]
[366051764,1750035033280,-460.0,0.00021917,4]
[366051765,1750035033291,-460.0,0.00021917,4]
[366051766,1750035033301,-460.0,0.00021917,4]
[366051767,1750035033311,-460.0,0.00021917,4]
[366051768,1750035033321,-460.0,0.00021917,4]
[366051769,1750035033330,-188.0,0.00022,2]
[366051770,1750035033340,-168.0,0.00022133,2]
[366051771,1750035033350,-10911.55462,0.0002219,2]
[366051772,1750035033360,-460.0,0.0002219,4]
[366051773,1750035033371,-460.0,0.00022191,4]
[366051774,1750035033380,-1000.0,0.00022191,4]
[366051775,1750035033390,-460.0,0.00022191,4]
[366051776,1750035033400,-460.0,0.00022191,4]
[366051777,1750035033410,-460.0,0.00022191,2]
[366051778,1750035033420,-460.0,0.00022191,4]
[366051779,1750035033429,-460.0,0.00022191,4]
[366051780,1750035033439,-460.0,0.00022191,4]
[366051781,1750035033449,-460.0,0.00022191,4]
[366051782,1750035033459,-460.0,0.00022191,4]
[366051783,1750035033469,-460.0,0.00022191,4]
[366051784,1750035033479,-460.0,0.00022191,4]
[366051785,1750035033490,-460.0,0.00022191,4]
[366051786,1750035033499,-460.0,0.00022191,4]
[366051787,1750035033509,-460.0,0.00022191,4]
[366051788,1750035033519,-460.0,0.00022191,4]
[366051789,1750035033529,-460.0,0.00022191,4]
[366051790,1750035033539,-784.96,0.00022191,4]
[366051791,1750035033549,-460.0,0.00022191,4]
[366051792,1750035033559,-460.0,0.00022191,4]
[366051793,1750035033569,-460.0,0.00022191,4]
[366051794,1750035033579,-460.0,0.00022191,4]
[366051795,1750035033589,-492.9263497,0.00022191,4]
[366051796,1750035033599,-460.0,0.00022191,4]
[366051797,1750035033609,-460.0,0.00022191,4]
[366051798,1750035033619,-460.0,0.00022191,4]
[366051799,1750035033629,-460.0,0.00022191,4]
[366051800,1750035033639,-460.0,0.00022191,4]
[366051801,1750035033650,-460.0,0.00022191,4]
[366051802,1750035033659,-460.0,0.00022191,4]
[366051803,1750035033670,-460.0,0.00022191,4]
[366051804,1750035033680,-460.0,0.00022191,4]
[366051805,1750035033690,-460.0,0.00022191,4]
[366051806,1750035033700,-460.0,0.00022191,4]
[366051807,1750035033711,-460.0,0.00022191,4]
[366051808,1750035033721,-460.0,0.00022191,4]
[366051809,1750035033732,-460.0,0.00022191,4]
[366051810,1750035033742,-450.6,0.00022465,4]
[366051811,1750035033752,-460.0,0.00022465,4]
[366051812,1750035033762,-460.0,0.00022465,4]
[366051813,1750035033772,-460.0,0.00022465,4]
[366051814,1750035033782,-460.0,0.00022465,4]
[366051815,1750035033793,-354.56,0.00022465,4]
[366051816,1750035033803,-460.0,0.00022465,4]
[366051817,1750035033813,-460.0,0.00022465,4]
[366051818,1750035033823,-460.0,0.00022465,4]
[366051819,1750035033833,-460.0,0.00022465,4]
[366051820,1750035033842,-460.0,0.00022465,4]
[366051821,1750035033852,-784.96,0.00022465,4]
[366051822,1750035033861,-460.0,0.00022465,4]
[366051823,1750035033871,-460.0,0.00022465,4]
[366051824,1750035033881,-460.0,0.00022465,4]
[366051825,1750035033891,-460.0,0.00022465,4]
[366051826,1750035033901,-460.0,0.00022465,4]
[366051827,1750035033911,-460.0,0.00022465,4]
[366051828,1750035033921,-460.0,0.00022465,4]
[366051829,1750035033932,-460.0,0.00022465,4]
[366051830,1750035033942,-460.0,0.00022465,4]
[366051831,1750035033951,-460.0,0.00022465,4]
[366051832,1750035033961,-460.0,0.00022465,4]
[366051833,1750035033970,-500.0,0.00022713,2]
[366051834,1750035033979,-460.0,0.00022739,4]
[366051835,1750035033988,-460.0,0.00022739,4]
[366051836,1750035033998,-460.0,0.00022739,4]
[366051837,1750035034007,-460.0,0.00022739,4]
[366051838,1750035034016,-460.0,0.00022739,4]
[366051839,1750035034027,-502.14,0.00022739,4]
[366051840,1750035034037,-460.0,0.00022739,4]
[366051841,1750035034046,-460.0,0.00022739,4]
[366051842,1750035034056,-784.96,0.00022739,4]
[366051843,1750035034066,-460.0,0.00022739,4]
[366051844,1750035034075,-460.0,0.00022739,4]
[366051845,1750035034085,-460.0,0.00022739,4]
[366051846,1750035034095,-460.0,0.00022739,4]
[366051847,1750035034104,-460.0,0.00022739,4]
[366051848,1750035034114,-460.0,0.00022739,4]
[366051849,1750035034123,-460.0,0.00022739,4]
[366051850,1750035034133,-460.0,0.00022739,4]
[366051851,1750035034142,-460.0,0.00022739,4]
[366051852,1750035034151,-460.0,0.00022739,4]
[366051853,1750035034161,-168.0,0.00022887,2]
[366051854,1750035034171,-460.0,0.00023013,4]
[366051855,1750035034181,-460.0,0.00023013,4]
[366051856,1750035034190,-460.0,0.00023013,4]
[366051857,1750035034204,-460.0,0.00023013,4]
[366051858,1750035034214,-460.0,0.00023013,4]
[366051859,1750035034223,-460.0,0.00023013,4]
[366051860,1750035034233,-784.96,0.00023013,4]
[366051861,1750035034243,-460.0,0.00023013,4]
[366051862,1750035034253,-460.0,0.00023013,4]
[366051863,1750035034263,-460.0,0.00023013,4]
[366051864,1750035034272,-460.0,0.00023013,4]
[366051865,1750035034283,-460.0,0.00023013,4]
[366051866,1750035034293,-460.0,0.00023013,4]
[366051867,1750035034303,-460.0,0.00023013,4]
[366051868,1750035034313,-460.0,0.00023013,4]
[366051869,1750035034322,-207.4,0.00023233,2]
[366051870,1750035034331,-289.82000526,0.00023242,2]
[366051871,1750035034340,-1000.0,0.00023261,2]
[366051872,1750035034350,-460.0,0.00023287,4]
[366051873,1750035034360,-460.0,0.00023287,4]
[366051874,1750035034369,-460.0,0.00023287,4]
[366051875,1750035034378,-460.0,0.00023287,4]
[366051876,1750035034388,-784.96,0.00023287,4]
[366051877,1750035034397,-460.0,0.00023287,4]
[366051878,1750035034406,-460.0,0.00023287,4]
[366051879,1750035034416,-460.0,0.00023287,4]
[366051880,1750035034425,-460.0,0.00023287,4]
[366051881,1750035034435,-460.0,0.00023287,4]
[366051882,1750035034444,-460.0,0.00023287,4]
[366051883,1750035034453,-460.0,0.00023287,4]
[366051884,1750035034462,-460.0,0.00023287,4]
[366051885,1750035034471,-168.0,0.00023297,2]
[366051886,1750035034481,-168.0,0.000233,2]
[366051887,1750035034490,-289.82000526,0.00023442,2]
[366051888,1750035034499,-168.0,0.00023536,2]
[366051889,1750035034508,-310.26,0.00023561,4]
[366051890,1750035034518,-460.0,0.00023561,4]
[366051891,1750035034528,-460.0,0.00023561,4]
[366051892,1750035034538,-460.0,0.00023561,4]
[366051893,1750035034547,-784.96,0.00023561,4]
[366051894,1750035034556,-460.0,0.00023561,4]
[366051895,1750035034566,-460.0,0.00023561,4]
[366051896,1750035034575,-460.0,0.00023561,4]
[366051897,1750035034585,-460.0,0.00023561,4]
[366051898,1750035034594,-420.0,0.00023576,2]
[366051899,1750035034603,-2008.93,0.00023599,2]
[366051900,1750035034613,-229.86375354,0.00023654,2]
[366051901,1750035034622,-835.55256958,0.00023654,2]
[366051902,1750035034631,-160.0,0.00023654,2]
[366051903,1750035034641,-215.1710487,0.000237,2]
[366051904,1750035034651,-2890.57706388,0.000237,2]
[366051905,1750035034661,-500.0,0.00023773,2]
[366051906,1750035034670,-310.26841365,0.00023773,2]
[366051907,1750035034680,-200.0,0.00023773,2]
[366051908,1750035034689,-362.87,0.0002379,3]
[366051909,1750035034699,-181.43,0.0002379,3]
[366051910,1750035034709,-544.33,0.0002379,3]
[366051911,1750035034718,-460.0,0.00023799,4]
[366051912,1750035034728,-9339.02704582,0.000238,2]
[366051913,1750035034737,-4085.89726265,0.000238,2]
[366051914,1750035034746,-53739.79444433,0.000238,3]
[366051916,1750035038577,-160.0,0.00021686,2]
[366051917,1750035038588,-256.99874376,0.00021917,4]
[366051918,1750035038600,-203.00125624,0.00021917,4]
[366051919,1750035038610,-460.0,0.00021917,4]
[366051920,1750035038620,-460.0,0.00021917,4]
[366051921,1750035038629,-213.29918128,0.00022191,4]
[366051960,1750035046554,-160.0,0.00021053,2]
[366051961,1750035046564,-246.70081872,0.00022191,4]
[366051962,1750035046574,-460.0,0.00022191,4]
[366051963,1750035046584,-460.0,0.00022191,4]
[366051964,1750035046595,-345.36,0.00022465,4]
[366051965,1750035046605,-460.0,0.00022465,4]
[366051966,1750035046615,-460.0,0.00022465,4]
[366051967,1750035046625,-460.0,0.00022739,4]
[366051968,1750035046634,-460.0,0.00022739,4]
[366051969,1750035046643,-460.0,0.00023013,4]
[366051970,1750035046653,-456.33,0.00023013,4]
[366051971,1750035046663,-433.62,0.00023287,4]
[366051972,1750035046675,-4459.64699422,0.000238,3]
[366051976,1750035435792,150.0,0.00019,2]
[366051978,1750035903845,664.35952857,0.00019,2]
[366051979,1750036033101,-193.71101276,0.00019202,2]
[366051980,1750036033122,-179.99979886,0.00019789,2]
[366051981,1750036033146,-180.3487327,0.00020579,2]
[366051982,1750036033167,-234.45894056,0.00020726,2]
[366051983,1750036033189,-92.95347273,0.00020942,2]
[366051984,1750036037105,-98.57265808,0.00020942,2]
[366051985,1750036037128,-243.0,0.00021005,2]
[366051986,1750036037149,-789.1244893,0.00021042,2]
[366051987,1750036037170,-160.0,0.00021571,2]
[366051988,1750036037191,-1011.33,0.00021578,2]
[366051989,1750036037214,-207.0,0.00021596,2]
[366051990,1750036037239,-150.0,0.000217,2]
[366051991,1750036037259,-300.0,0.00021901,2]
[366051992,1750036037280,-300.0,0.00021901,2]
[366051993,1750036037301,-7648.81253155,0.00021902,2]
[366051994,1750036037322,-300.0,0.00021902,2]
[366051995,1750036037342,-300.0,0.00021902,2]
[366051996,1750036037364,-1200.0,0.00021902,2]
[366051997,1750036037387,-207.0,0.00021903,2]
[366051998,1750036037412,-500.0,0.00021914,2]
[366051999,1750036037433,-500.0,0.00021914,2]
[366052000,1750036037454,-500.0,0.00021914,2]
[366052001,1750036037477,-500.0,0.00021914,2]
[366052002,1750036037498,-478.61130553,0.00021914,2]
[366052005,1750036113489,123.6201971,0.00013699,2]
[366052006,1750036113521,39.2537489,0.00013699,2]
[366052007,1750036146236,-2548.11327554,0.00021,2]
[366052008,1750036146260,-2000.0,0.000215,2]
[366052009,1750036146283,-998.46,0.00021598,2]
[366052010,1750036146306,-300.0,0.00021914,2]
[366052011,1750036146330,-500.0,0.00021915,2]
[366052012,1750036146363,-500.0,0.00021915,2]
[366052013,1750036146391,-500.0,0.00021915,2]
[366052014,1750036146415,-253.8816626,0.00021915,2]
[366052015,1750036146443,-500.0,0.00021915,2]
[366052016,1750036146469,-385.66906334,0.00021915,2]
[366052017,1750036146662,-290.75400898,0.00021915,2]
[366052018,1750036146685,-198.84436832,0.00021915,2]
[366052019,1750036146709,-500.0,0.00021915,2]
[366052020,1750036146732,-500.0,0.00021915,2]
[366052021,1750036146753,-500.0,0.00021915,2]
[366052022,1750036146776,-584.78666043,0.00021915,2]
[366052023,1750036146799,-162.466,0.00021916,2]
[366052024,1750036146824,-1000.0,0.00021917,4]
[366052025,1750036146847,-600.44486233,0.00021917,4]
[366052026,1750036146869,-579.76777114,0.00021917,4]
[366052027,1750036146893,-460.0,0.00021917,4]
[366052028,1750036146917,-319.99314376,0.00021917,4]
[366052029,1750036146940,-215.57,0.00021917,4]
[366052030,1750036146965,-460.0,0.00021917,4]
[366052031,1750036146990,-460.0,0.00021917,4]
[366052032,1750036147021,-460.0,0.00021917,4]
[366052033,1750036147048,-460.0,0.00021917,4]
[366052034,1750036147074,-460.0,0.00021917,4]
[366052035,1750036147099,-460.0,0.00021917,4]
[366052036,1750036147124,-460.0,0.00021917,4]
[366052037,1750036147147,-556.01,0.00021917,4]
[366052038,1750036147175,-460.0,0.00021917,4]
[366052039,1750036147207,-460.0,0.00021917,4]
[366052040,1750036147233,-460.0,0.00021917,4]
[366052041,1750036147259,-470.7,0.00021917,4]
[366052042,1750036147291,-460.0,0.00021917,4]